bitfinex/quotes_ETHUSD_20240721
["timestamp","ask_amount","ask_price","bid_price","bid_amount"]
[1721573770157,0.894483,3518.5,3517.7,9.6501]
[1721573770369,0.96264876,3518.5,3517.7,9.6501]
[1721573770656,2.84222,3518.4,3517.7,12.4928]
[1721573770880,2.90934468,3518.4,3517.7,12.4928]
[1721573771030,2.84228,3518.3,3517.7,2.4201]
[1721573771220,0.06705836,3518.3,3517.7,5.26285]
[1721573771757,0.06705836,3518.3,3517.8,2.84268]
[1721573772258,0.89551308,3518.5,3518.0,2.8425]
[1721573772419,0.06693806,3518.2,3518.0,2.8425]
[1721573772621,0.89551308,3518.6,3518.0,2.8425]
[1721573772841,1.89458567,3518.6,3518.0,2.8425]
[1721573773390,0.0670162,3518.5,3518.0,2.8425]
[1721573773545,0.0670162,3518.5,3517.7,2.4201]
[1721573773856,0.0670162,3518.5,3518.4,2.4201]
[1721573774065,0.29552593,3518.9,3518.4,2.4201]
[1721573774066,1.19103901,3518.9,3518.4,2.4201]
[1721573774269,0.06704259,3518.5,3518.4,2.4201]
[1721573774420,1.19103901,3518.9,3518.4,2.4201]
[1721573774633,0.36445551,3518.5,3518.4,2.4201]
[1721573774936,0.29741292,3518.5,3518.3,2.84222]
[1721573775136,0.36445551,3518.5,3518.3,2.84222]
[1721573776950,0.36445551,3518.5,3518.1,5.26249]
[1721573777266,0.36445551,3518.5,3517.7,2.4124]
[1721573777469,0.36445551,3518.5,3517.4,2.4124]
[1721573777470,2.84245,3518.1,3517.4,2.4124]
[1721573777819,2.90963266,3518.0,3517.2,2.84316]
[1721573778164,0.06705266,3518.0,3517.3,2.84307]
[1721573779069,0.06705266,3518.0,3517.5,2.84291]
[1721573779220,2.84237,3518.2,3517.5,2.84291]
[1721573779425,0.06697142,3517.9,3517.5,2.84291]
[1721573779675,2.84237,3518.2,3517.5,2.84291]
[1721573779834,0.06696362,3517.8,3517.5,2.84291]
[1721573780035,2.84237,3518.2,3517.5,3.411509]
[1721573780241,3.13779176,3518.4,3517.7,2.84275]
[1721573783273,2.84228,3518.3,3517.6,2.4124]
[1721573783498,2.84228,3518.3,3517.6,5.25524]
[1721573784104,1.19109484,3518.4,3517.7,2.84276]
[1721573784319,3.13779176,3518.4,3517.7,2.84276]
[1721573784622,4.03330484,3518.4,3517.7,2.84276]
[1721573785293,3.97375448,3518.4,3517.7,2.84276]
[1721573785619,4.86926756,3518.4,3517.7,2.84276]
[1721573785969,3.97375448,3518.4,3517.7,2.84276]
[1721573787602,1.13154448,3518.4,3517.7,2.84276]
[1721573787810,0.29558176,3518.4,3517.7,2.84276]
[1721573789032,0.29558176,3518.4,3517.9,2.8426]
[1721573789836,0.06693621,3518.3,3517.9,2.8426]
[1721573790313,0.06693621,3518.3,3517.7,2.84276]
[1721573793803,0.06693621,3518.3,3517.9,2.84254]
[1721573796033,0.06693621,3518.3,3517.8,2.84266]
[1721573796260,0.06693621,3518.3,3518.2,2.84236]
[1721573801659,0.06693621,3518.3,3518.0,2.84252]
[1721573802039,0.06693621,3518.3,3517.9,2.4124]
[1721573802254,0.96244929,3518.3,3517.6,5.11122]
[1721573802584,0.96244929,3518.3,3517.7,2.84275]
[1721573803251,0.89551308,3518.2,3517.7,2.84275]
[1721573803469,0.06698351,3518.2,3517.8,2.84266]
[1721573803953,0.29740239,3518.1,3517.8,2.84266]
[1721573804343,0.06696791,3518.0,3517.8,2.84266]
[1721573804653,0.06696791,3518.0,3517.8,5.68532]
[1721573804982,0.06696791,3518.0,3517.9,2.8426]
[1721573805538,0.06696791,3518.0,3517.9,8.748966]
[1721573806168,0.59310828,3518.1,3518.0,2.84252]
[1721573808478,0.66006106,3518.1,3517.9,2.2684]
[1721573808679,0.66006106,3518.1,3517.9,5.11099]
[1721573809051,0.66006106,3518.1,3517.7,2.84271]
[1721573809479,0.66006106,3518.1,3517.6,2.2684]
[1721573809678,1.55557414,3518.1,3517.5,10.07288]
[1721573810002,1.55557414,3518.1,3517.7,2.84273]
[1721573810669,0.66006106,3518.1,3517.7,2.84273]
[1721573811262,1.55557414,3518.1,3517.5,10.07288]
[1721573812101,0.06696768,3518.0,3517.5,10.07288]
[1721573812723,0.06696768,3518.0,3517.5,1.518434]
[1721573812876,0.06696768,3518.0,3517.5,4.361344]
[1721573813497,4.32508481,3518.2,3517.5,4.361344]
[1721573813692,0.06472812,3517.9,3517.6,2.84284]
[1721573814205,0.06472031,3517.8,3517.6,2.84284]
[1721573814562,4.32508481,3518.2,3517.6,2.84284]
[1721573814934,4.32508481,3518.2,3517.4,2.2684]
[1721573814935,5.32125625,3518.2,3517.4,2.2684]
[1721573815061,5.32125625,3518.2,3516.4,1.48338992]
[1721573815062,4.02945946,3518.0,3517.2,2.2684]
[1721573815402,4.02962946,3517.8,3517.1,2.84323]
[1721573815615,1.18693946,3517.7,3517.1,2.84323]
[1721573815766,1.25161068,3517.7,3517.1,2.84323]
[1721573815969,4.09438068,3517.7,3516.9,5.11177]
[1721573816307,4.09438068,3517.7,3516.9,6.630334]
[1721573816608,1.18693946,3517.7,3516.9,6.630334]
[1721573817063,2.84284,3517.6,3516.9,6.630334]
[1721573817399,0.06457156,3517.6,3516.9,6.630324]
[1721573817898,0.06457156,3517.6,3517.1,2.84324]
[1721573818363,0.90745023,3517.6,3516.9,2.2684]
[1721573818578,0.06457156,3517.6,3516.9,2.2684]
[1721573818780,2.84294,3517.5,3516.9,2.2684]
[1721573819027,2.84311,3517.3,3516.6,5.13738]
[1721573819324,0.06452657,3517.2,3516.6,5.13738]
[1721573819618,0.06452657,3517.2,3516.6,5.935498]
[1721573819978,0.06452657,3517.2,3516.7,2.84357]
[1721573820178,0.06452657,3517.2,3516.6,3.091918]
[1721573820377,0.06452657,3517.2,3516.6,5.935548]
[1721573820592,2.90773657,3517.2,3516.6,3.091918]
[1721573820795,2.90773657,3517.2,3516.6,2.2938]
[1721573820993,2.84326,3517.1,3516.4,2.8438]
[1721573821385,2.84342,3516.9,3516.3,2.2938]
[1721573821890,0.0622332,3516.8,3516.3,2.2938]
[1721573822406,2.84326,3517.1,3516.3,5.13769]
[1721573822724,0.062233,3517.0,3516.4,2.84381]
[1721573823417,0.3577632,3517.0,3516.3,3.814982]
[1721573823628,2.84341,3516.9,3516.3,3.814982]
[1721573823782,2.84341,3516.9,3516.3,2.2938]
[1721573824118,2.90575354,3516.8,3516.3,2.2938]
[1721573824430,0.06220354,3516.8,3516.3,2.2938]
[1721573824625,2.84357,3516.7,3516.3,2.2938]
[1721573824873,2.84357,3516.7,3516.0,5.13792]
[1721573825032,0.06220126,3516.6,3516.1,2.84404]
[1721573825384,2.84345,3516.9,3516.1,2.84404]
[1721573825579,0.06217615,3516.5,3516.2,2.84397]
[1721573825785,3.1388602,3517.0,3516.3,2.84389]
[1721573825984,0.06215056,3516.4,3516.3,2.84389]
[1721573826184,3.1388602,3517.0,3516.3,3.70676027]
[1721573826423,0.06215501,3516.4,3516.1,2.84401]
[1721573826632,2.84341,3516.9,3516.0,5.13792]
[1721573826809,0.0621472,3516.3,3516.0,5.13792]
[1721573827009,2.84341,3516.9,3516.0,5.13792]
[1721573827543,0.06219068,3516.8,3516.0,5.13792]
[1721573827699,0.35956767,3516.8,3516.1,0.513792]
[1721573827896,0.35956767,3516.8,3516.2,2.84397]
[1721573828994,3.20305767,3516.8,3516.0,5.13792]
[1721573829208,2.84367,3516.6,3516.0,2.2938]
[1721573829598,0.0621794,3516.5,3516.0,5.13793]
[1721573830138,0.0621794,3516.5,3516.0,2.2938]
[1721573830486,1.3650794,3516.5,3515.9,2.84416]
[1721573830737,1.3650794,3516.5,3515.8,2.8443]
[1721573831026,2.84381,3516.4,3515.6,9.5238]
[1721573831553,0.06211642,3516.3,3515.8,2.8443]
[1721573832046,2.84367,3516.6,3515.8,2.8443]
[1721573832222,0.06203701,3516.2,3515.8,2.8443]
[1721573832440,2.84375,3516.5,3515.9,1.521255]
[1721573832625,0.0620292,3516.1,3515.8,2.8443]
[1721573832852,2.84375,3516.5,3515.8,2.8443]
[1721573833347,0.06205609,3516.4,3515.8,2.8443]
[1721573833525,0.35752464,3516.4,3515.8,2.8443]
[1721573834750,0.35752464,3516.4,3515.9,2.84421]
[1721573835316,0.35752464,3516.4,3515.9,4.365449]
[1721573835810,0.35752464,3516.4,3516.0,2.84412]
[1721573836009,0.35752464,3516.4,3516.2,2.84396]
[1721573836241,0.35752464,3516.4,3516.0,5.1379]
[1721573838814,0.35752464,3516.4,3515.8,2.84425]
[1721573839054,0.35752464,3516.4,3515.6,10.07444]
[1721573839055,3.20136464,3516.4,3515.7,2.4645]
[1721573839413,0.35752464,3516.4,3515.7,5.30888]
[1721573840664,3.20134464,3516.4,3515.7,6.847222]
[1721573841585,3.20134464,3516.4,3515.8,2.8443]
[1721573841984,0.35752464,3516.4,3515.8,2.8443]
[1721573842165,0.35752464,3516.4,3515.8,0.05688031]
[1721573842492,0.29546855,3516.4,3516.3,2.4645]
[1721573842640,0.29546855,3516.4,3516.3,2.71095]
[1721573843813,0.29546855,3516.4,3516.3,5.55484]
[1721573846075,0.59286444,3516.4,3516.3,8.39873]
[1721573847551,0.59286444,3516.4,3516.3,5.55484]
[1721573847757,0.29546855,3516.4,3516.3,5.55484]
[1721573847994,0.29546855,3516.4,3516.3,0.24645]
[1721573848300,0.29546855,3516.4,3516.3,3.09034]
[1721573848799,0.29546855,3516.4,3516.3,5.93423]
[1721573849865,0.29546855,3516.4,3516.3,8.39873]
[1721573854302,0.29546855,3516.4,3516.3,5.55484]
[1721573854599,0.35543868,3516.4,3516.3,5.55484]
[1721573856697,0.35543868,3516.4,3516.3,9.39873]
[1721573856878,0.29546855,3516.4,3516.3,9.39873]
[1721573857210,0.29546855,3516.4,3516.3,9.94873]
[1721573857700,0.59287234,3516.4,3516.3,9.94873]
[1721573858202,0.59287234,3516.4,3516.3,9.39873]
[1721573860183,0.59287234,3516.4,3516.3,9.94873]
[1721573860576,0.59287234,3516.4,3516.3,12.79262]
[1721573860875,0.59287234,3516.4,3516.3,9.94873]
[1721573861079,0.59287234,3516.4,3516.3,15.79262]
[1721573861574,4.14535,3518.1,3517.1,2.84324]
[1721573861777,4.05898687,3518.0,3517.6,2.014]
[1721573862202,4.65216866,3518.0,3517.6,2.014]
[1721573863281,7.49474866,3518.0,3517.6,2.014]
[1721573863482,0.87976487,3517.9,3517.6,2.014]
[1721573863879,0.06020827,3517.8,3517.6,2.014]
[1721573866335,0.06020827,3517.8,3517.7,0.839]
[1721573868792,1.25228822,3517.8,3517.7,0.839]
[1721573869002,0.06020827,3517.8,3517.7,0.839]
[1721573869198,2.65324597,3517.8,3517.7,0.839]
[1721573869788,5.49592597,3517.8,3517.7,0.839]
[1721573871212,2.65324597,3517.8,3517.7,0.839]
[1721573872330,0.06020827,3517.8,3517.7,0.839]
[1721573872511,0.06020827,3517.8,3517.7,0.789]
[1721573873028,1.25224818,3517.8,3517.7,0.789]
[1721573873199,0.95394654,3517.8,3517.7,0.789]
[1721573873535,0.06020827,3517.8,3517.7,0.789]
[1721573874744,0.95387579,3517.8,3517.7,0.789]
[1721573875186,0.06020827,3517.8,3517.7,0.789]
[1721573876494,0.59318179,3518.0,3517.8,2.4261]
[1721573876690,0.59318179,3518.0,3517.9,0.839]
[1721573879704,0.65347644,3518.0,3517.9,0.839]
[1721573881088,0.65347644,3518.0,3517.9,4.11788863]
[1721573881522,0.65347644,3518.0,3517.9,1.27528863]
[1721573882305,0.65347644,3518.0,3517.9,0.839]
[1721573890514,0.65347644,3518.0,3517.4,2.2827]
[1721573890732,0.65347644,3518.0,3517.9,0.839]
[1721573891513,1.54714396,3518.0,3517.9,0.839]
[1721573892033,1.62615783,3518.0,3517.4,2.2827]
[1721573892202,2.51982535,3518.0,3517.4,2.2827]
[1721573892399,2.84261,3517.9,3517.4,2.2827]
[1721573892612,0.06036841,3517.8,3517.4,2.2827]
[1721573893346,0.06036841,3517.8,3517.7,0.839]
[1721573893543,0.89366752,3517.9,3517.7,0.839]
[1721573893753,1.82731358,3517.9,3517.8,0.839]
[1721573894850,1.88768979,3517.9,3517.8,0.839]
[1721573895349,0.99402227,3517.9,3517.8,0.839]
[1721573895854,3.83662227,3517.9,3517.8,0.839]
[1721573896164,4.73028979,3517.9,3517.8,0.839]
[1721573896629,2.84272,3517.8,3517.1,2.2827]
[1721573896948,3.73665596,3517.6,3517.1,2.2827]
[1721573897146,0.89374596,3517.5,3517.1,2.2827]
[1721573897449,3.79702096,3517.5,3517.1,2.2827]
[1721573897645,0.59312163,3517.4,3516.6,2.3798]
[1721573897821,2.47834363,3517.4,3516.6,2.3798]
[1721573898021,2.47834363,3517.4,3516.6,5.22344]
[1721573898022,0.95401735,3517.3,3516.6,5.22344]
[1721573898227,0.95401735,3517.3,3517.2,0.839]
[1721573898949,0.06027139,3517.3,3517.2,0.839]
[1721573899245,0.06027139,3517.3,3517.2,3.2188]
[1721573900045,0.06027139,3517.3,3517.2,6.66819]
[1721573900259,0.06027139,3517.3,3517.2,3.82502]
[1721573900460,0.06027139,3517.3,3517.2,3.2188]
[1721573901418,0.06027139,3517.3,3517.0,2.84327]
[1721573901419,0.06027139,3517.3,3516.7,2.84354]
[1721573901622,0.06027139,3517.3,3517.2,0.839]
[1721573901859,0.95401735,3517.3,3517.2,0.839]
[1721573902860,0.06027139,3517.3,3517.2,0.839]
[1721573903358,0.95401735,3517.3,3517.2,0.839]
[1721573905945,0.06027139,3517.3,3517.2,0.839]
[1721573907672,0.06027139,3517.3,3517.2,3.1893]
[1721573910445,0.06027139,3517.3,3517.2,6.03247]
[1721573910629,0.06027139,3517.3,3517.2,3.1893]
[1721573911033,0.06027139,3517.3,3517.2,8.87564]
[1721573911234,0.06027139,3517.3,3517.2,9.763204]
[1721573911671,0.59312163,3517.4,3517.3,8.03646]
[1721573913239,0.89374596,3518.0,3517.8,2.84268]
[1721573913436,0.89374596,3518.2,3517.9,6.0319]
[1721573913671,0.89374596,3518.3,3518.1,0.839]
[1721573913979,0.89374596,3518.3,3518.2,0.839]
[1721573914182,1.18948203,3518.3,3518.2,0.839]
[1721573916143,0.29573607,3518.3,3518.2,2.012]
[1721573916886,0.29573607,3518.3,3517.0,7.23]
[1721573916887,1.75566182,3518.3,3517.5,2.012]
[1721573917072,3.7366076,3518.1,3517.5,2.012]
[1721573917385,0.8941676,3517.7,3517.5,2.012]
[1721573917681,0.8941676,3517.6,3517.5,2.012]
[1721573921257,1.38706635,3517.6,3517.5,2.012]
[1721573921844,0.49289875,3517.6,3517.5,2.012]
[1721573922859,1.38718485,3517.6,3517.5,2.012]
[1721573923277,0.49289875,3517.6,3517.5,2.012]
[1721573924989,1.74311525,3517.6,3517.5,2.012]
[1721573925480,0.84882774,3517.6,3517.5,2.012]
[1721573927151,2.04086765,3517.6,3517.5,2.012]
[1721573927653,2.04086765,3517.6,3517.1,2.4099]
[1721573927654,2.84301,3517.4,3517.1,4.4219]
[1721573927855,0.89443739,3517.3,3517.1,4.4219]
[1721573928071,0.95465423,3517.3,3517.1,4.4219]
[1721573931081,0.89443739,3517.2,3517.1,4.4219]
[1721573931569,0.95460202,3517.2,3517.1,4.4219]
[1721573933355,0.06016463,3517.2,3517.1,4.4219]
[1721573935388,0.3557399,3517.2,3517.1,4.4219]
[1721573937726,0.3557399,3517.2,3517.1,2.012]
[1721573937886,1.16861495,3517.2,3517.1,2.012]
[1721573938086,2.06305234,3517.2,3517.1,2.012]
[1721573938297,1.25017729,3517.2,3517.1,4.4435]
[1721573938498,0.3557399,3517.2,3517.1,4.4435]
[1721573938801,1.25017729,3517.2,3517.1,4.4435]
[1721573938999,0.3557399,3517.2,3517.1,4.4435]
[1721573941502,0.3557399,3517.2,3517.1,2.012]
[1721573941738,0.88431695,3517.2,3517.1,2.012]
[1721573941886,0.88431695,3517.2,3516.9,2.4315]
[1721573942090,0.89472373,3517.1,3516.9,2.4315]
[1721573942507,0.0601351,3517.0,3516.9,2.4315]
[1721573943118,0.35745582,3517.0,3516.9,2.4315]
[1721573944926,0.35745582,3517.0,3516.9,3.160214]
[1721573945122,0.35745582,3517.0,3516.9,6.003624]
[1721573946089,0.29732072,3517.0,3516.9,6.003624]
[1721573946789,0.29732072,3517.0,3516.9,8.015624]
[1721573946994,0.35742793,3517.0,3516.9,8.015624]
[1721573947896,0.35742793,3517.0,3516.9,5.172214]
[1721573950943,0.29557527,3517.2,3517.1,2.84325]
[1721573951113,0.29557527,3517.2,3517.1,6.1415774]
[1721573952015,0.29557527,3517.2,3517.1,8.9848274]
[1721573952221,1.19258318,3518.0,3517.1,8.9848274]
[1721573952222,0.89472373,3518.0,3517.2,2.4556]
[1721573952417,0.06021893,3517.9,3517.8,2.4556]
[1721573952748,0.29543728,3518.0,3517.8,2.4556]
[1721573952949,0.06024446,3517.9,3517.8,2.4556]
[1721573953511,0.06024446,3517.9,3517.7,2.012]
[1721573954145,0.89472373,3517.8,3517.7,2.012]
[1721573954355,0.67764498,3517.8,3517.3,2.012]
[1721573954647,0.89436933,3517.7,3517.3,2.012]
[1721573954832,0.06021698,3517.6,3517.3,2.012]
[1721573956050,0.06021698,3517.6,3517.4,2.4556]
[1721573958713,0.89436933,3517.7,3517.4,2.4556]
[1721573958916,0.89436933,3517.9,3517.6,2.012]
[1721573959216,0.89436933,3517.7,3517.6,2.012]
[1721573960339,1.19258318,3517.9,3517.6,2.012]
[1721573960340,0.89436933,3517.8,3517.6,2.012]
[1721573960941,0.89436933,3517.7,3517.6,2.012]
[1721573961523,0.89436933,3517.7,3517.6,4.4237]
[1721573961833,0.89436933,3517.8,3517.6,4.4237]
[1721573962452,0.89436933,3517.7,3517.6,4.4237]
[1721573964147,0.89436933,3517.7,3517.6,2.4117]
[1721573964365,1.19258318,3517.8,3517.6,3.2507]
[1721573968160,1.19258318,3517.8,3517.6,2.4117]
[1721573968345,1.19258318,3517.8,3517.7,0.839]
[1721573969071,1.19258318,3517.9,3517.7,0.839]
[1721573969275,1.78703973,3518.0,3517.8,0.839]
[1721573969444,1.19319402,3517.9,3517.8,0.839]
[1721573969838,1.25349535,3517.9,3517.8,0.839]
[1721573970680,0.06030133,3517.9,3517.8,0.839]
[1721573971066,2.84275,3517.8,3517.3,2.4117]
[1721573971269,6.15417811,3517.9,3517.8,0.839]
[1721573976423,2.84301,3517.4,3517.2,2.4117]
[1721573976621,2.84301,3517.4,3516.3,3.84388]
[1721573976622,4.03645062,3517.4,3517.3,0.839]
[1721573976819,2.84302,3517.4,3517.3,0.839]
[1721573977181,3.13827866,3517.4,3517.0,2.4117]
[1721573977377,0.89508129,3517.1,3517.0,2.4117]
[1721573978709,0.89508129,3517.1,3517.0,3.2507]
[1721573980376,0.89508129,3517.2,3517.0,3.2507]
[1721573980580,0.89508129,3517.1,3517.0,2.4117]
[1721573981194,0.89508129,3517.1,3517.0,3.2507]
[1721573981195,1.19344173,3517.1,3517.0,3.2507]
[1721573982321,4.03666173,3517.2,3517.0,3.2507]
[1721573982486,4.99107768,3517.2,3517.0,3.2507]
[1721573982690,1.19344173,3517.1,3517.0,0.839]
[1721573983407,4.99107768,3517.2,3517.0,0.839]
[1721573984099,0.89483048,3517.1,3517.0,0.839]
[1721573984444,0.89479145,3517.1,3517.0,0.839]
[1721573984736,4.03666173,3517.2,3517.0,0.839]
[1721573984942,0.06007124,3517.1,3517.0,0.839]
[1721573985298,0.95485817,3517.1,3517.0,0.839]
[1721573985593,0.95485817,3517.1,3517.0,3.2671]
[1721573985825,0.06007124,3517.1,3517.0,3.2671]
[1721573987020,0.89478693,3517.3,3517.0,3.2671]
[1721573987196,0.06006428,3517.1,3517.0,2.4281]
[1721573987396,0.89478693,3517.2,3517.0,2.4281]
[1721573987601,0.89478693,3517.2,3517.1,0.839]
[1721573988238,1.19344173,3517.3,3517.1,0.839]
[1721573988441,0.58228557,3517.2,3517.1,0.839]
[1721573990139,4.03653173,3517.3,3517.1,0.839]
[1721573990648,1.19344173,3517.3,3517.1,0.839]
[1721573992603,4.03653173,3517.3,3517.1,0.839]
[1721573993746,1.19344173,3517.3,3517.1,0.839]
[1721573993919,0.89459011,3517.2,3517.1,0.839]
[1721573997951,1.19344173,3517.3,3517.1,0.839]
[1721573998240,1.19344173,3517.3,3517.2,0.839]
[1721574000446,0.89466309,3517.3,3517.2,3.2943]
[1721574000664,1.18992175,3517.4,3517.2,3.2943]
[1721574001148,0.89466309,3517.3,3517.2,3.2943]
[1721574002473,4.03652173,3517.3,3516.9,2.4553]
[1721574002618,2.84308,3517.3,3517.2,0.839]
[1721574003451,4.62959503,3517.4,3517.2,0.839]
[1721574004366,4.62959503,3517.4,3517.3,2.4553]
[1721574004367,0.29525866,3517.4,3517.3,2.4553]
[1721574004854,1.48829667,3517.4,3517.3,2.4553]
[1721574005059,0.29525866,3517.4,3517.3,2.4553]
[1721574005764,1.48829667,3517.4,3517.3,2.4553]
[1721574005941,4.02051396,3517.4,3516.6,2.4553]
[1721574006143,4.62957503,3517.4,3517.3,0.839]
[1721574006752,0.29525866,3517.4,3517.3,0.839]
[1721574006957,0.29525866,3517.4,3517.3,3.2943]
[1721574008145,1.48843331,3517.4,3517.3,3.2943]
[1721574010617,0.29525866,3517.4,3517.3,3.2943]
[1721574010853,1.78713528,3517.4,3517.3,3.2943]
[1721574011242,3.013449,3517.4,3517.3,0.839]
[1721574011451,1.52157238,3517.4,3517.1,2.4778]
[1721574011628,1.49225,3517.3,3517.1,2.4778]
[1721574011823,2.84308,3517.3,3517.2,0.839]
[1721574013462,2.84317,3517.2,3517.1,2.4778]
[1721574013765,2.84317,3517.2,3517.1,3.3168]
[1721574014355,3.59088116,3517.2,3517.1,3.3168]
[1721574015450,3.65096716,3517.2,3517.1,3.3168]
[1721574015863,1.55281314,3517.2,3517.1,3.3168]
[1721574016077,1.25420825,3517.2,3517.1,3.3168]
[1721574018161,1.54947495,3517.2,3517.1,3.3168]
[1721574018489,1.54984913,3517.2,3517.1,3.3168]
[1721574019187,1.25118011,3517.2,3517.1,3.3168]
[1721574019883,0.3553527,3517.2,3517.1,3.3168]
[1721574020184,1.25117999,3517.2,3517.1,3.3168]
[1721574021069,0.3553527,3517.2,3517.1,3.3168]
[1721574022076,1.54984913,3517.2,3517.1,3.3168]
[1721574022765,0.3553527,3517.2,3517.1,3.3168]
[1721574023772,1.54996594,3517.2,3517.1,3.3168]
[1721574025347,0.3553527,3517.2,3517.1,3.3168]
[1721574025546,1.54996594,3517.2,3517.1,3.3168]
[1721574028289,1.54995054,3517.2,3517.1,3.3168]
[1721574029492,1.54995054,3517.2,3517.1,2.4778]
[1721574029649,1.54995054,3517.2,3517.1,3.3168]
[1721574030164,0.3553527,3517.2,3517.1,3.3168]
[1721574030562,1.54995054,3517.2,3517.1,3.3168]
[1721574030787,1.48986454,3517.2,3517.1,3.3168]
[1721574031008,1.84861638,3517.2,3517.1,3.3168]
[1721574031162,0.3553533,3517.2,3517.1,3.3168]
[1721574032855,1.84870476,3517.2,3517.1,3.3168]
[1721574035793,0.3553533,3517.2,3517.1,3.3168]
[1721574036001,1.84864146,3517.2,3517.1,3.3168]
[1721574038258,2.09060342,3517.9,3517.1,3.3168]
[1721574038259,0.2847,3518.8,3517.9,17.12721]
[1721574038614,2.84177,3519.0,3518.2,0.839]
[1721574038615,2.84235,3518.3,3518.2,0.839]
[1721574038760,5.6847,3518.3,3518.2,0.839]
[1721574038961,2.84244,3518.1,3518.0,0.839]
[1721574040002,2.84252,3518.0,3517.9,17.12721]
[1721574040181,5.68504,3518.0,3517.9,17.12721]
[1721574040391,8.68504,3518.0,3517.9,17.12721]
[1721574043884,5.84252,3518.0,3517.9,17.12721]
[1721574044689,2.84244,3518.1,3517.9,11.28469]
[1721574044872,5.84252,3518.0,3517.9,11.28469]
[1721574045084,8.68504,3518.0,3517.9,11.28469]
[1721574045495,5.84252,3518.0,3517.9,11.28469]
[1721574045976,5.90068414,3518.0,3517.9,11.28469]
[1721574049081,6.19623287,3518.0,3517.9,11.28469]
[1721574049305,7.30913514,3518.0,3517.9,11.28469]
[1721574051303,3.35371287,3518.0,3517.9,11.28469]
[1721574052414,0.35371287,3518.0,3517.9,11.28469]
[1721574052706,3.35371287,3518.0,3517.9,11.28469]
[1721574052911,0.35371287,3518.0,3517.9,11.28469]
[1721574053208,3.35371287,3518.0,3517.9,11.28469]
[1721574053621,0.35371287,3518.0,3517.9,11.28469]
[1721574056618,3.0,3518.2,3518.1,10.93097713]
[1721574056788,3.0,3518.2,3518.1,11.76997713]
[1721574058606,5.84236,3518.2,3518.1,11.76997713]
[1721574058827,6.13818468,3518.2,3518.1,11.76997713]
[1721574059612,10.08759471,3518.2,3518.1,10.93097713]
[1721574060916,10.38495741,3518.2,3518.1,10.93097713]
[1721574061806,7.54259741,3518.2,3518.1,10.93097713]
[1721574062010,3.59318738,3518.2,3518.1,14.14297713]
[1721574063385,3.2973627,3518.2,3518.1,14.14297713]
[1721574064428,3.35356447,3518.2,3518.1,14.14297713]
[1721574066784,0.35356447,3518.2,3518.1,14.14297713]
[1721574066984,0.05620177,3518.2,3518.1,15.55727484]
[1721574067231,0.14181796,3519.1,3518.2,2.373]
[1721574067232,0.29734573,3518.6,3518.2,2.373]
[1721574067439,0.29734573,3518.6,3518.5,3.212]
[1721574071543,5.84159,3519.2,3518.7,2.373]
[1721574071713,5.84159,3519.2,3519.1,0.839]
[1721574071917,6.72423454,3519.2,3519.1,0.839]
[1721574072119,0.88264454,3519.2,3519.1,3.212]
[1721574072424,2.84148,3519.3,3519.1,3.212]
[1721574073433,3.13663255,3519.3,3519.1,3.212]
[1721574073761,2.95,3519.2,3519.1,3.212]
[1721574075521,2.84164,3519.1,3518.8,10.6336314]
[1721574075838,5.68358,3518.9,3518.8,10.6336314]
[1721574076172,8.68358,3518.9,3518.8,10.6336314]
[1721574079568,8.74005126,3518.9,3518.8,10.6336314]
[1721574083863,9.03511999,3518.9,3518.8,10.6336314]
[1721574086243,14.51176926,3518.9,3518.8,7.09442616]
[1721574086446,14.68225392,3518.9,3518.8,7.09442616]
[1721574086652,16.76754961,3518.9,3518.8,7.09442616]
[1721574086966,14.68225392,3518.9,3518.8,7.09442616]
[1721574087653,14.97961632,3518.9,3518.8,7.09442616]
[1721574087862,17.06495093,3518.9,3518.8,7.09442616]
[1721574089972,17.06516947,3518.9,3518.8,7.09442616]
[1721574090188,14.97961632,3518.9,3518.8,7.09442616]
[1721574091370,11.58782632,3518.9,3518.8,7.93342616]
[1721574091709,11.23782632,3518.9,3518.8,7.93342616]
[1721574091909,11.23782632,3518.9,3518.8,7.09442616]
[1721574093269,14.07961632,3518.9,3518.8,7.09442616]
[1721574093494,11.23782632,3518.9,3518.8,7.09442616]
[1721574096115,14.07961632,3518.9,3518.8,7.09442616]
[1721574096623,11.23782632,3518.9,3518.8,7.09442616]
[1721574101523,14.07961632,3518.9,3518.8,7.09442616]
[1721574101681,11.23782632,3518.9,3518.8,7.09442616]
[1721574102081,14.42961632,3518.9,3518.8,7.09442616]
[1721574102280,16.51573397,3518.9,3518.8,7.09442616]
[1721574102480,13.67394397,3518.9,3518.8,7.09442616]
[1721574102924,11.58782632,3518.9,3518.8,7.09442616]
[1721574103932,13.67394397,3518.9,3518.8,7.09442616]
[1721574104300,11.58782632,3518.9,3518.8,7.09442616]
[1721574104814,11.23782632,3518.9,3518.8,7.09442616]
[1721574105929,11.23782632,3518.9,3518.8,9.40522616]
[1721574117379,14.07961632,3518.9,3518.8,9.40522616]
[1721574119039,11.23782632,3518.9,3518.8,9.40522616]
[1721574119571,16.16794542,3518.9,3518.8,9.40522616]
[1721574120525,16.16908522,3518.9,3518.8,9.40522616]
[1721574121376,14.07961632,3518.9,3518.8,9.40522616]
[1721574121714,14.62961632,3518.9,3518.8,7.09442616]
[1721574122005,14.62961632,3518.9,3518.8,5.44611271]
[1721574122135,14.97961632,3518.9,3518.8,5.44611271]
[1721574122624,17.44878679,3518.9,3518.8,5.44611271]
[1721574123027,14.97961632,3518.9,3518.8,5.44611271]
[1721574123245,14.62961632,3518.9,3518.8,5.44611271]
[1721574123642,11.78782632,3518.9,3518.8,7.94181271]
[1721574124334,11.23782632,3518.9,3518.8,7.94181271]
[1721574124532,13.3279442,3518.9,3518.8,7.94181271]
[1721574125034,13.32790727,3518.9,3518.8,7.94181271]
[1721574125234,11.23782632,3518.9,3518.8,7.94181271]
[1721574125668,13.32794852,3518.9,3518.8,7.94181271]
[1721574127077,11.23782632,3518.9,3518.8,7.94181271]
[1721574127289,13.32794852,3518.9,3518.8,7.94181271]
[1721574127485,11.23782632,3518.9,3518.8,7.94181271]